[Event "87th Spanish Championship 2022"]
[Site "Linares"]
[Date "2022.08.12"]
[Round "2.8"]
[White "Alshameary Puente, Ismael"]
[Black "Garriga Cazorla, Pere"]
[Result "0-1"]
[ECO "E04"]
[WhiteElo "2352"]
[BlackElo "2505"]
[Annotator "TA"]
[PlyCount "118"]
[EventDate "2022.08.11"]
[EventType "swiss"]
[EventCountry "ESP"]
[SourceTitle "playchess.com"]
[Source "ChessBase"]
[SourceQuality "1"]
[TimeControl "5400+30"]

{[%evp 13,118,-8,-18,-41,0,-16,-17,-60,-55,-74,-70,-94,-94,-113,-111,-106,-88,-100,-85,-90,-108,-95,-96,-126,-119,-100,-89,-209,-211,-220,-213,-210,-216,-207,-206,-227,-205,-323,-314,-340,-313,-366,-381,-671,-466,-447,-330,-346,-355,-453,-448,-443,-429,-765,-765,-752,-720,-633,-445,-387,-309,-944,-845,-29978,-732,-840,-544,-12793,-12793,-29976,-29977,-29977,-29978,-29973,-52,-52,-52,-52,-52,-52,-52,-52,-52,-1059,-522,-29964,-29962,-29959,-29969,-29967,-29969,-29973,-29973,-29968,-29974,-29969,-5297,-29971,-174,-29974,-5636,-29979,-29981,-29988,-29988,-29988,-29989]} 1. d4 {[%emt 0:00:02]} Nf6 {[%emt 0:00:08]} 2. c4 {[%emt 0:00:13]} e6 {[%emt 0:00:07]} 3. g3 {[%emt 0:00:07]} d5 {[%emt 0:01:38]} 4. Bg2 {[%emt 0:00:15]} dxc4 {[%emt 0:03:02]} 5. Nf3 {[%emt 0:01:06]} Nc6 {[%emt 0:01:38]} 6. O-O {[%emt 0:06:41]} Rb8 {[%emt 0:04:47]} 7. Nc3 {[%emt 0:11:32]} b5 {[%emt 0:20:46][%cal Bb7b5,Bb5b4][%mdl 32]} 8. e4 {[%emt 0:06:22] E04: Open Catalan: 5 Nf3.} b4 {[%emt 0:14:40]} 9. Na4 {[%emt 0:01:47]} (9. Qa4 $2 bxc3 10. bxc3 (10. Qxc6+ $2 Bd7 $19) 10... Bd7 $19) 9... Be7 {[%emt 0:05:07]} (9... Nxe4 10. Nd2 $16) 10. Qe2 {[%emt 0:29:14] The position is equal.} Ba6 {[%emt 0:09:15]} 11. Rd1 {[%emt 0:16:06][%cal Od4d5]} Bb5 {[%emt 0:03:13]} 12. Nc5 {[%emt 0:03:34]} O-O {[%emt 0:02:29]} (12... c3 $6 13. Qc2 $11) 13. a4 {[%emt 0:04:44]} bxa3 $1 {[%emt 0:00:13] [#]} 14. Rxa3 $146 {[%emt 0:00:44]} ({Predecessor:} 14. bxa3 Na5 15. a4 Bc6 16. Ne5 Ba8 17. Be3 Qc8 18. Qc2 Nb3 19. Rab1 Nxc5 20. dxc5 {1-0 (56) Sanzhaev,D (2366)-Dragun,K (2530) Al Ain 2013}) 14... Bxc5 {[%emt 0:01:18]} 15. dxc5 {[%emt 0:00:02]} Qe7 {[%emt 0:00:07]} (15... c3 $6 16. Qe1 cxb2 17. Bxb2 $15) 16. e5 {[%emt 0:04:51] Black must now prevent Bg5.} Nd5 {[%emt 0:05:30]} 17. Qe4 {[%emt 0:00:25]} h6 {[%emt 0:04:40] Against Ng5} 18. Qg4 {[%emt 0:02:07]} c3 {[%emt 0:06:09]} 19. bxc3 {[%emt 0:01:52] c4 is the strong threat.} (19. Bxh6 f5 20. exf6 Nxf6 21. Qxg7+ Qxg7 $19) 19... Be2 {[%emt 0:00:40]} (19... f5 20. exf6 Nxf6 21. Qg6 $11) 20. Re1 {[%emt 0:03:50]} (20. Bxh6 $17 f5 21. exf6 Qxf6 22. Re1 (22. Bg5 $2 Bxf3 23. Bxf3 Qxf3 $19)) 20... Nxe5 $1 $19 {[%emt 0:01:10]} 21. Qe4 {[%emt 0:00:32]} Nxf3+ {[%emt 0:00:11]} 22. Bxf3 {[%emt 0:00:02]} Bxf3 {[%emt 0:00:08]} 23. Qxf3 {[%emt 0:00:05]} Qxc5 {[%emt 0:00:14]} 24. Ra4 {[%emt 0:02:56]} Qxc3 {[%emt 0:01:30]} (24... Nxc3 25. Ba3 Nxa4 26. Bxc5 Nxc5 27. Qa3 $11) 25. Qe2 {[%emt 0:00:52]} (25. Qxc3 {is a better defense.} Nxc3 26. Rxa7) 25... Rb1 {[%emt 0:01:37]} 26. Rc4 {[%emt 0:00:46]} Qf6 {[%emt 0:00:08]} 27. Kg2 {[%emt 0:00:23]} Rfb8 {[%emt 0:00:06]} 28. Be3 $2 {[%emt 0:00:20]} (28. Qe4) 28... Rxe1 {[%emt 0:00:51]} 29. Qxe1 {[%emt 0:00:02]} a6 {[%emt 0:00:16]} 30. Bd4 {[%emt 0:01:07]} Qf5 {[%emt 0:00:16]} 31. Qe2 {[%emt 0:00:46]} Rb4 {[%emt 0:00:17]} 32. Rxb4 {[%emt 0:01:12]} Nxb4 {[%emt 0:00:12]} 33. Bxg7 {[%emt 0:00:21]} (33. Qe5 $142 Qxe5 34. Bxe5) 33... Kxg7 {[%emt 0:01:59]} 34. Qb2+ {[%emt 0:00:02]} Kh7 {[%emt 0:00:09]} 35. Qxb4 {[%emt 0:00:06][%mdl 4096] Endgame KQ-KQ} Qd5+ {[%emt 0:00:34]} 36. Kg1 {[%emt 0:00:30]} c5 {[%emt 0:00:25]} 37. Qa4 {[%emt 0:00:49]} (37. Qf4 Kg7 38. Qg4+ Kf8 39. Qf4) 37... c4 {[%emt 0:00:36]} 38. Qxa6 {[%emt 0:00:19]} c3 {[%emt 0:01:13]} (38... Qd1+ $142 39. Kg2 c3 40. Qa7 Kg6 41. Qe3 c2 42. Qe4+ Kg7 43. Qe5+ f6 44. Qxe6 c1=Q 45. Qe7+ Kg6 46. Qe8+ Kg7 47. Qe7+ Kg8 48. Qe6+ Kg7 49. Qe7+) 39. Qe2 {[%emt 0:00:14]} Qf5 {[%emt 0:02:17] Hoping for ...Kg8.} 40. Qc4 {[%emt 0:01:55]} Qf3 {[%emt 0:01:24] ( -> ...Qd1+)} 41. Qc7 {[%emt 0:00:39]} Kg6 {[%emt 0:00:29]} 42. h4 {[%emt 0:00:12]} Qd1+ {[%emt 0:02:23]} 43. Kg2 {[%emt 0:00:37]} c2 $2 {[%emt 0:01:04]} (43... Qd2 44. h5+ Kf6 45. Qb8 c2 46. Qb2+ Kf5 47. Qg7 c1=Q 48. Qxf7+ Ke5 49. Qg7+ Kd6 50. Qf8+ Kc7 51. Qf7+ Qd7 52. Qxd7+ Kxd7 53. Kf3 Qd2 54. g4 e5 55. Ke4 Qd4+ 56. Kf3 Qd3+ 57. Kg2 e4 58. g5 hxg5 59. Kh2 Qf3 60. Kg1 e3 61. fxe3 g4 62. Kh2 Qf2+ 63. Kh1 g3 64. h6 Qh2#) 44. h5+ $1 $15 {[%emt 0:00:30]} Kg7 {[%emt 0:00:21]} (44... Kxh5 $2 {is a self mate.} 45. Qxf7+ Kg5 46. f4+ Kg4 47. Qg6#) 45. Qe5+ {[%emt 0:00:38]} Kh7 {[%emt 0:00:01]} 46. Qc7 $1 {[%emt 0:01:21]} Qd5+ {[%emt 0:00:22]} ({Reject} 46... c1=Q 47. Qxf7+ Kh8 48. Qe8+ (48. Qf8+ Kh7 $11) 48... Kh7 49. Qg6+ Kh8 50. Qe8+ Kh7 51. Qg6+ Kh8 52. Qe8+ $11) 47. Kg1 $1 {[%emt 0:00:12]} Qf5 {[%emt 0:00:39]} 48. Kg2 $2 {[%emt 0:00:40][%mdl 8192] [#] Loses the game.} (48. Qc4 $15) 48... Qe4+ $1 $19 {[%emt 0:00:49]} 49. Kg1 {[%emt 0:00:44] [#]} Kg7 {[%emt 0:00:07]} 50. Qc3+ {[%emt 0:00:12]} e5 {[%emt 0:00:05]} 51. Kh2 {[%emt 0:00:21]} Kf6 {[%emt 0:01:15]} 52. Qc7 {[%emt 0:00:54]} Qd3 {[%emt 0:01:00]} 53. Qc6+ {[%emt 0:00:35]} Kg5 {[%emt 0:00:22]} 54. Qc5 {[%emt 0:00:14]} Qf5 {[%emt 0:00:33]} ({Stronger than} 54... Qd2 55. Qxe5+ f5 56. Kh3 $11) (54... Qe2 $142 55. Kg2 Qe4+ 56. f3 Qe2+ 57. Kh3 Kxh5 58. Qe7 Qxf3 59. Qxe5+ Kg6 60. Qe1 Qh5+ 61. Kg2 Qd5+ 62. Kh2 Qc5 63. Qe4+ Kg7 64. Qg4+ Kh8 65. Kh3 c1=Q 66. Qf3 Q5g1 67. Qf6+ Kg8 68. Qf3 h5 69. Qg4+ hxg4+ 70. Kh4 Qh2+ 71. Kxg4 Qe2+ 72. Kh4 Qh6#) 55. Kg2 {[%emt 0:00:36]} Kxh5 $2 {[%emt 0:00:44]} (55... Qe4+ {mates} 56. f3 Qe2+ 57. Kh3 Kxh5 58. Qd5 Kg6 59. Qc6+ Kg7 60. Qc5 Qf1+ 61. Kh2 c1=Q 62. Qxe5+ Kg6 63. Qe4+ Kf6 64. Qd4+ Ke6 65. Qg4+ Kd6 66. Qd4+ Kc6 67. Qa4+ Kb6 68. Qb4+ Qb5 69. Qd4+ Kc7 70. Qa7+ Kc6 71. Qa8+ Kd6 72. Qd8+ Ke6 73. Qe8+ Qxe8 74. Kg2 Qd2+ 75. Kh3 f5 76. g4 f4 77. Kh4 Qh2#) 56. f3 $2 {[%emt 0:00:38]} (56. Qc4 $19) 56... Kg6 {[%emt 0:00:07]} (56... Qd3 $142 57. Qc8 Kg6 58. Qg8+ Kf6 59. Qh8+ Ke7 60. Qxe5+ Kd7 61. Qf4 Qe2+ 62. Kh3 Qf1+ 63. Kg4 c1=Q 64. Qf5+ Kc6 65. Qc8+ Kb5 66. Qb7+ Ka4 67. Qe4+ Kb5 68. Qb7+ Ka5 69. Qa8+ Kb4 70. Qb8+ Kc3 71. Qe5+ Kb3 72. Qb8+ Kc2 73. Qc7+ Kd3 74. Qd6+ Ke2 75. Qa6+ Kf2 76. Qxf1+ Qxf1 77. Kf5 Qe2 78. Kf6 Kxf3 79. g4 Qe6+ 80. Kg7 Kxg4 81. Kg8 Kg5 82. Kg7 Qe8 83. Kh7 Kf6 84. Kxh6 Qh8#) 57. g4 {[%emt 0:00:33]} Qd3 {[%emt 0:00:34] Black mates.} 58. Qc8 {[%emt 0:00:20]} Kg7 {[%emt 0:00:22]} 59. Qc5 {[%emt 0:00:32]} Qe2+ {[%emt 0:00:08] Weighted Error Value: White=1.32/Black=0.71} 0-1

[Event "87th Spanish Championship 2022"]
[Site "Linares"]
[Date "2022.08.12"]
[Round "2.9"]
[White "Lopez Martinez, Josep Manuel"]
[Black "Garrido Diaz, Jose Antonio"]
[Result "1-0"]
[ECO "D51"]
[WhiteElo "2486"]
[BlackElo "2306"]
[Annotator "TA"]
[PlyCount "75"]
[EventDate "2022.08.11"]
[EventType "swiss"]
[EventCountry "ESP"]
[SourceTitle "playchess.com"]
[Source "ChessBase"]
[SourceQuality "1"]
[TimeControl "5400+30"]

{[%evp 15,75,15,18,1,21,23,23,26,31,17,28,25,37,25,29,29,43,29,227,223,437,452,452,453,439,438,445,452,433,429,620,607,721,722,716,702,704,700,939,936,843,830,844,285,268,221,2091,1468,1248,1166,1085,1068,1893,1814,29990,29991,29995,29996,29996,29997,29998,29999]} 1. d4 {[%emt 0:06:43]} d5 {[%emt 0:00:09]} 2. c4 {[%emt 0:00:45]} e6 {[%emt 0:00:04]} 3. Nc3 {[%emt 0:00:57]} Nf6 {[%emt 0:00:15]} 4. Bg5 {[%emt 0:01:31]} c6 {[%emt 0:01:25]} 5. e3 {[%emt 0:00:26]} Nbd7 {[%emt 0:00:43]} 6. cxd5 {[%emt 0:00:48]} exd5 {[%emt 0:00:22]} 7. Bd3 {[%emt 0:00:16]} Be7 {[%emt 0:05:44]} 8. Nge2 {[%emt 0:01:30]} h6 {[%emt 0:01:10]} 9. Bh4 {[%emt 0:00:29] D35: Queen's Gambit Declined: Exchange Variation.} Nh5 {[%emt 0:03:15]} 10. Bxe7 {[%emt 0:03:57]} Qxe7 {[%emt 0:00:06]} 11. Qc2 {[%emt 0:07:54] White has an edge. Recently 11.Qd2 got a lot of attention.} Nhf6 {[%emt 0:03:35]} 12. h3 {[%emt 0:04:25] [#]} a5 $146 {[%emt 0:03:33]} ({Predecessor:} 12... Nb6 13. O-O-O Bd7 14. Kb1 Nc8 15. Ng3 Nd6 16. f3 b5 17. e4 dxe4 18. fxe4 Nb7 {1-0 (41) Pinazo Donoso,J (2110)-Adillon Bosch,J Spain 1999}) 13. O-O {[%emt 0:09:52]} O-O {[%emt 0:06:28]} 14. Na4 {[%emt 0:02:25]} Re8 {[%emt 0:04:46]} 15. Ng3 {[%emt 0:07:33]} g6 {[%emt 0:14:24]} 16. Rfe1 {[%emt 0:01:34]} Qd6 $2 {[%emt 0:08:36] A mistake that costs the game.} (16... Nf8 $11 {and Black is okay.}) 17. Bxg6 $1 $18 {[%emt 0:17:11]} fxg6 $2 {[%emt 0:00:07]} (17... b5 {is a better defense.}) 18. Qxg6+ {[%emt 0:00:06]} Kh8 {[%emt 0:00:22]} 19. Qxh6+ {[%emt 0:00:06]} Kg8 {[%emt 0:00:05]} 20. Qg6+ {[%emt 0:00:17]} Kh8 {[%emt 0:00:09] [#]} 21. Nb6 $1 {[%emt 0:02:14][%mdl 512]} Nxb6 {[%emt 0:15:21]} 22. Nh5 {[%emt 0:00:09][%csl Gh5][%cal Rg6g7]} Qf8 {[%emt 0:01:11] Against Qg7+} (22... Re7 $142) 23. Nxf6 {[%emt 0:00:12][%csl Gf6][%cal Rg6h7]} Re7 {[%emt 0:00:15] [#] Inhibits Qh7+.} 24. e4 $1 {[%emt 0:00:56][%cal Be3e4,Be4e5,Be5f6][%mdl 32] Re3 is the strong threat.} (24. Qh5+ Kg7 25. Qg5+ Kf7 $11) 24... Nd7 {[%emt 0:02:43]} 25. e5 {[%emt 0:08:10] White threatens Qh5+ and mate.} ({Not} 25. Qh5+ Kg7 26. Qg5+ Kf7 $18) 25... Nxf6 {[%emt 0:01:23]} 26. exf6 {[%emt 0:00:18]} ({Inferior is} 26. Qxf6+ Qxf6 27. exf6 Re4 $15) 26... Re6 {[%emt 0:03:00]} 27. Re5 {[%emt 0:10:38]} Rxe5 {[%emt 0:00:21]} 28. dxe5 {[%emt 0:00:06][%cal Bd4e5,Be5e6][%mdl 32]} Be6 {[%emt 0:01:13]} 29. f4 $2 {[%emt 0:00:28]} (29. Qh5+ Kg8 30. f4) 29... Bf7 {[%emt 0:05:58]} 30. Qg5 {[%emt 0:01:16] Hoping for Qh4+.} Re8 $2 {[%emt 0:02:56]} (30... Qg8 31. Qxg8+ (31. Qh6+ Qh7 $18) 31... Kxg8) 31. f5 {[%emt 0:02:38] Threatening mate with Qh4+.} Qg8 {[%emt 0:00:53]} 32. Qf4 {[%emt 0:00:47]} d4 {[%emt 0:06:21]} 33. e6 {[%emt 0:00:46] Qh6+ would kill now.} Rd8 {[%emt 0:01:55]} 34. Rd1 {[%emt 0:03:27] Threatens to win with Rd3.} c5 {[%emt 0:00:42]} 35. Rd3 {[%emt 0:00:54] White mates.} Be8 {[%emt 0:01:21]} 36. Rg3 {[%emt 0:00:23]} Qh7 {[%emt 0:00:07]} 37. f7 {[%emt 0:00:38]} Bxf7 {[%emt 0:00:30]} 38. Qe5+ {[%emt 0:00:08] Weighted Error Value: White=0.25 (precise) /Black=0.78} 1-0

[Event "87th Spanish Championship 2022"]
[Site "Linares"]
[Date "2022.08.12"]
[Round "2.10"]
[White "Luque Saiz, Andres"]
[Black "Gines Esteo, Pedro Antonio"]
[Result "0-1"]
[ECO "B18"]
[WhiteElo "2289"]
[BlackElo "2455"]
[Annotator "TA"]
[PlyCount "110"]
[EventDate "2022.08.11"]
[EventType "swiss"]
[EventCountry "ESP"]
[SourceTitle "playchess.com"]
[Source "ChessBase"]
[SourceQuality "1"]
[TimeControl "5400+30"]

{[%evp 17,110,42,26,34,33,23,35,25,31,11,16,8,19,14,13,19,15,4,27,17,52,24,39,18,9,26,29,-12,-14,-10,-10,-13,-12,-15,-15,-15,0,0,0,0,0,0,0,0,0,0,0,0,9,-23,-13,-7,-4,-540,-532,-555,-555,-463,-463,-399,-285,-285,-285,-1106,-1063,-1237,-908,-3426,-3426,-2512,-2279,-1703,-1558,-1205,-666,-570,-75,-29964,-29959,-29969,-29970,-29973,-29973,-29973,-29974,-29978,-29979,-29981,-29982,-29982,-29983,-29983,-29984,-29984,-29985]} 1. e4 {[%emt 0:00:02]} c6 {[%emt 0:00:20]} 2. d4 {[%emt 0:00:11]} d5 {[%emt 0:00:07]} 3. Nd2 {[%emt 0:00:06]} dxe4 {[%emt 0:00:11]} 4. Nxe4 {[%emt 0:00:05]} Bf5 {[%emt 0:00:26]} 5. Ng3 {[%emt 0:00:09]} Bg6 {[%emt 0:00:07]} 6. Nh3 {[%emt 0:00:28]} e6 {[%emt 0:01:36]} 7. Nf4 {[%emt 0:00:14]} Bd6 {[%emt 0:00:12]} 8. h4 {[%emt 0:00:55]} Qc7 {[%emt 0:00:14]} 9. Nxg6 {[%emt 0:00:34]} hxg6 {[%emt 0:00:07]} 10. Ne4 {[%emt 0:00:08] B18: Classical Caro-Kann: 4...Bf5 sidelines.} Nf6 {[%emt 0:01:06]} 11. Nxd6+ {[%emt 0:07:44]} Qxd6 {[%emt 0:00:12]} 12. c3 {[%emt 0:00:17] White is slightly better.} Nbd7 {[%emt 0:00:14]} 13. Bc4 {[%emt 0:06:14] [#]} c5 $146 {[%emt 0:24:00]} ({Predecessor:} 13... a5 14. Qf3 a4 15. a3 Rc8 16. Bf4 Qe7 17. O-O-O b5 18. Ba2 Nd5 19. Bg5 f6 {1-0 (35) Tan,J (2375)-Olson,H (2050) Glasgow 2014}) 14. Be3 {[%emt 0:19:04]} cxd4 {[%emt 0:16:14]} 15. Qxd4 {[%emt 0:01:18]} Qxd4 {[%emt 0:00:31]} 16. Bxd4 {[%emt 0:08:16]} g5 {[%emt 0:00:11]} 17. g3 {[%emt 0:01:13]} gxh4 {[%emt 0:01:12]} 18. gxh4 {[%emt 0:02:56]} Ke7 {[%emt 0:06:10]} 19. O-O-O {[%emt 0:01:21]} Rh7 {[%emt 0:04:20]} 20. Bd3 {[%emt 0:03:41]} g6 {[%emt 0:01:27]} 21. Be3 {[%emt 0:00:35]} Nd5 {[%emt 0:15:09]} 22. Bb5 {[%emt 0:21:28]} a6 {[%emt 0:05:01]} 23. Bg5+ {[%emt 0:02:57] This bishop pair is nice.} f6 {[%emt 0:04:26]} 24. Bxd7 {[%emt 0:00:29]} fxg5 {[%emt 0:00:02]} 25. Bxe6 {[%emt 0:00:59]} Kxe6 {[%emt 0:00:07]} 26. Rhe1+ {[%emt 0:00:11]} Kd6 {[%emt 0:00:06]} 27. c4 {[%emt 0:00:09][%mdl 64] [#] Pin} gxh4 {[%emt 0:00:01][%cal Oa8f8]} 28. Rxd5+ $11 {[%emt 0:00:14][%mdl 4096] Endgame KRR-KRR} Kc7 {[%emt 0:00:03]} 29. Rc5+ $1 {[%emt 0:00:25]} Kb6 {[%emt 0:04:06]} 30. Rg5 {[%emt 0:00:23]} Rf8 {[%emt 0:12:16] Strongly threatening ...h3.} 31. Rxg6+ {[%emt 0:05:36]} Kc5 {[%emt 0:02:50]} 32. Rg5+ {[%emt 0:03:27]} Kb4 {[%emt 0:00:29]} 33. Rg2 {[%emt 0:08:33]} h3 {[%emt 0:00:35]} 34. Rh2 {[%emt 0:00:12]} Rf3 {[%emt 0:00:05]} 35. Re3 $2 {[%emt 0:05:24][%mdl 8192] Black keeps a firm grip on the game.} (35. Kd2 $11 {and White is okay.}) 35... Rxe3 $19 {[%emt 0:00:28]} 36. fxe3 {[%emt 0:00:03]} Kxc4 {[%emt 0:00:06] And now ...Kd3 would win. KR-KR} 37. Kd2 {[%emt 0:00:08]} Kd5 {[%emt 0:01:04]} 38. Kd3 {[%emt 0:02:43]} Ke5 {[%emt 0:00:01]} 39. Ke2 {[%emt 0:00:33]} Ke4 {[%emt 0:00:10]} 40. b4 $2 {[%emt 0:00:22]} (40. Kf1) 40... b5 {[%emt 0:00:10]} 41. a3 {[%emt 0:00:38]} Rh6 {[%emt 0:00:11]} 42. Rh1 {[%emt 0:00:28]} h2 {[%emt 0:03:12]} 43. Kf2 {[%emt 0:00:28]} Rh3 {[%emt 0:00:59] aiming for ...Rf3+.} 44. Kg2 {[%emt 0:00:31]} Rxe3 {[%emt 0:01:11]} 45. Ra1 {[%emt 0:00:19]} Re2+ {[%emt 0:00:29]} 46. Kh1 {[%emt 0:00:04]} Rb2 $2 {[%emt 0:00:18]} (46... Ke3 $19 {and Black stays clearly on top. ( -> ...Kf2)} 47. a4 Rb2 48. axb5 axb5) 47. a4 $2 {[%emt 0:01:11][%mdl 8192] [#]} (47. Re1+ $17 Kf5 48. Rf1+ Ke5 49. Rf3) 47... Rxb4 {[%emt 0:00:07] Black mates.} 48. axb5 {[%emt 0:00:04]} axb5 {[%emt 0:00:09][%cal Ba6b5,Bb5b4,Bb4b3][%mdl 32]} 49. Kxh2 {[%emt 0:00:20]} Ra4 {[%emt 0:01:12]} 50. Rd1 {[%emt 0:01:00]} b4 {[%emt 0:00:16]} 51. Kg3 {[%emt 0:00:37]} b3 {[%emt 0:00:19]} 52. Rd8 {[%emt 0:00:29]} Rb4 {[%emt 0:00:20]} 53. Rf8 {[%emt 0:00:30]} Kd3 {[%emt 0:00:34]} 54. Rf3+ {[%emt 0:00:14]} Kc2 {[%emt 0:00:31]} 55. Rf2+ {[%emt 0:00:08]} Kb1 {[%emt 0:00:11] Weighted Error Value: White=0.66/Black=0.32} 0-1

[Event "87th Spanish Championship 2022"]
[Site "Linares"]
[Date "2022.08.12"]
[Round "2.11"]
[White "Garcia Martin, Marta"]
[Black "Ladron De Guevara Pinto, Paolo"]
[Result "1-0"]
[ECO "B00"]
[WhiteElo "2305"]
[BlackElo "2444"]
[Annotator "TA"]
[PlyCount "73"]
[EventDate "2022.08.11"]
[EventType "swiss"]
[EventCountry "ESP"]
[SourceTitle "playchess.com"]
[Source "ChessBase"]
[SourceQuality "1"]
[TimeControl "5400+30"]

{[%evp 12,73,45,49,32,41,37,33,29,27,31,23,20,8,55,56,64,59,50,52,66,15,66,62,57,45,33,40,50,52,53,20,35,18,112,105,259,260,256,175,186,180,210,190,220,128,323,315,386,427,402,396,421,409,782,779,5627,5631,5936,6133,29974,12837,29979,12828]} 1. e4 {[%emt 0:00:04]} Nc6 {[%emt 0:00:26]} 2. Nf3 {[%emt 0:00:21]} d6 {[%emt 0:00:24]} 3. d4 {[%emt 0:01:17]} Nf6 {[%emt 0:01:26]} 4. Nc3 {[%emt 0:09:39]} g6 {[%emt 0:00:25]} 5. d5 {[%emt 0:02:07]} Nb8 {[%emt 0:00:07]} 6. Bc4 {[%emt 0:02:26]} Bg7 {[%emt 0:00:09]} 7. O-O {[%emt 0:00:20]} O-O {[%emt 0:00:13] B06: Modern Defence.} 8. Re1 {[%emt 0:01:12]} c6 {[%emt 0:02:51]} 9. a4 {[%emt 0:01:28]} Qc7 {[%emt 0:08:14] White is slightly better.} 10. Bf1 {[%emt 0:12:47]} Nbd7 {[%emt 0:13:56]} 11. h3 {[%emt 0:05:26]} Re8 {[%emt 0:06:50]} 12. Bf4 {[%emt 0:16:11] [#]} Nh5 $146 {[%emt 0:02:51]} (12... a6 $11 {feels stronger.}) ({Predecessor:} 12... cxd5 13. exd5 a6 14. Qd2 b6 15. Bh6 Bh8 16. Re3 Bb7 17. Rae1 Ne5 18. Nxe5 dxe5 19. Rxe5 {0-1 (45) Zavgorodniy,S (2225)-Zajarnyi,A (2380) St Petersburg 2000}) 13. Be3 $14 {[%emt 0:00:57]} Nf8 {[%emt 0:21:58]} 14. Qd2 {[%emt 0:11:58]} Nf6 {[%emt 0:16:00]} 15. a5 {[%emt 0:03:32]} e6 {[%emt 0:02:53]} 16. a6 {[%emt 0:11:33]} (16. Bd4 $14) 16... bxa6 {[%emt 0:10:05]} (16... cxd5 $1 $11 17. exd5 bxa6) 17. dxc6 {[%emt 0:01:17]} Qxc6 {[%emt 0:01:38]} 18. Nd4 {[%emt 0:00:06]} Qc7 {[%emt 0:02:27]} 19. Bxa6 {[%emt 0:08:34]} Bxa6 {[%emt 0:00:21]} 20. Rxa6 {[%emt 0:00:04] Strongly threatening Ndb5.} Qb7 {[%emt 0:01:31][%csl LRa6,LRb2,LRe4]} 21. Qd3 {[%emt 0:00:14]} d5 {[%emt 0:02:25]} 22. Qb5 $36 {[%emt 0:00:46][%mdl 2048] White is pushing.} Qc8 {[%emt 0:01:56] [#]} (22... Rab8 $11 {keeps the balance.}) 23. Nc6 $1 $16 {[%emt 0:08:21]} Nxe4 $2 {[%emt 0:00:48]} (23... N6d7 $16) 24. Nxe4 $18 {[%emt 0:00:05]} (24. Nxa7 Qb8 $11) 24... dxe4 {[%emt 0:00:04]} 25. Rd1 {[%emt 0:00:45]} (25. Rxa7 Rxa7 26. Nxa7 (26. Bxa7 Qd7 $11) 26... Qb8 $16) (25. Bxa7 Bxb2 26. Rxe4 Bf6 $14) 25... h5 {[%emt 0:02:06]} 26. Bc5 {[%emt 0:00:45]} (26. Rxa7 $6 Rxa7 27. Bxa7 Nd7 $16) 26... Kh7 {[%emt 0:00:16]} (26... Bxb2 $2 27. Bxf8 (27. Nxa7 Qc7 $11) 27... Bf6 28. Bd6 $18 (28. Rxa7 Rxf8 29. Rdd7 Rxa7 $15) (28. Nxa7 $2 Qxc2 29. Qf1 Rxf8 $19)) 27. b4 {[%emt 0:00:57]} (27. Bxa7 $6 Qc7 $16) (27. Nxa7 Qc7 $14) (27. Rxa7 $6 Rxa7 28. Nxa7 Qa8 $14) 27... e5 {[%emt 0:00:14]} (27... Nd7 $2 28. Nxa7 Rb8 29. Rb6 (29. Qxd7 Qxa6 30. Qxf7 Rf8 $11) 29... Rxb6 30. Bxb6 Qxc2 31. Rxd7 $18) 28. Rxa7 {[%emt 0:00:28]} ({Resist} 28. Nxa7 $6 Qf5 $16) (28. c4 $18) 28... Qf5 $2 {[%emt 0:00:26] A mistake that costs the game.} (28... Rxa7 $16 29. Nxa7 Qa8) 29. Ne7 {[%emt 0:00:46]} Qg5 {[%emt 0:00:09]} 30. Rxa8 {[%emt 0:00:30]} Rxa8 {[%emt 0:00:11]} 31. Qb7 {[%emt 0:00:11][%csl LRa8,LRe4]} Re8 {[%emt 0:01:37]} 32. Nd5 {[%emt 0:00:49]} Ne6 {[%emt 0:00:14]} (32... Qf5 $142 33. Ne3 Qe6) 33. Qxf7 {[%emt 0:00:28]} Nf4 {[%emt 0:01:14]} 34. Nxf4 {[%emt 0:00:05][%cal Od1d7] [#] Rd7! would kill now. Active counter play!} exf4 {[%emt 0:00:07]} 35. Qxe8 {[%emt 0:00:32] White wants to mate with Rd7.} f3 {[%emt 0:00:04]} 36. g3 {[%emt 0:00:03] Threatening mate with Rd7.} h4 {[%emt 0:00:08]} 37. Be3 {[%emt 0:01:19] Weighted Error Value: White=0.12 (very precise) /Black=0.89} (37. g4 $142 Qe5 38. Qf7 Qf6 39. Qb7 Kg8 40. Qxe4 Qe5 41. Qxg6 Qf6 42. Qe4) 1-0